bitfinex/quotes_ETHUSD_20230116
["timestamp","ask_amount","ask_price","bid_price","bid_amount"]
[1673862321995,10.704,1543.0,1542.9,19.4439]
[1673862322483,3.4936951,1543.2,1542.9,19.4439]
[1673862322693,3.27278678,1543.1,1542.9,19.4439]
[1673862323952,0.4936951,1543.2,1542.9,19.4439]
[1673862324163,3.76648188,1543.2,1542.9,19.4439]
[1673862325125,3.75908678,1543.2,1542.9,19.4439]
[1673862325760,3.27278678,1543.1,1542.9,12.9626]
[1673862325988,7.56935153,1543.2,1542.9,6.4813]
[1673862325989,3.27278678,1543.0,1542.9,6.4813]
[1673862329993,3.27278678,1543.0,1542.9,12.9626]
[1673862333325,3.27278678,1543.0,1542.9,13.65218171]
[1673862333577,3.27278678,1543.0,1542.9,7.17088171]
[1673862333578,3.60006546,1543.0,1542.9,7.17088171]
[1673862334303,3.27278678,1543.0,1542.9,13.65218171]
[1673862343768,5.21996693,1543.2,1542.9,20.13348171]
[1673862344026,3.27278678,1543.1,1542.9,20.13348171]
[1673862348411,2.5,1543.2,1542.9,20.13348171]
[1673862348629,5.77278678,1543.2,1542.9,20.13348171]
[1673862349152,7.69119092,1543.2,1542.9,20.13348171]
[1673862353102,5.77278678,1543.2,1542.9,20.13348171]
[1673862358487,10.62097376,1543.2,1542.9,20.13348171]
[1673862358805,5.77278678,1543.2,1542.9,20.13348171]
[1673862367755,3.27278678,1543.1,1542.9,7.17088171]
[1673862368497,3.27278678,1543.0,1542.9,0.68958171]
[1673862368682,3.60006546,1543.0,1542.9,0.68958171]
[1673862369049,3.60006546,1543.0,1542.9,0.68588606]
[1673862373643,0.18411394,1542.9,1542.5,6.48275]
[1673862373954,3.53414678,1542.8,1542.5,6.48275]
[1673862374164,3.62620146,1542.7,1542.5,6.48275]
[1673862376640,3.62620146,1542.7,1542.4,24.63816402]
[1673862379247,3.62620146,1542.7,1542.5,0.6081189]
[1673862379379,3.27278678,1542.6,1542.5,0.6081189]
[1673862380058,21.59100637,1542.6,1542.5,0.6081189]
[1673862380235,13.03026589,1542.6,1542.5,0.6081189]
[1673862380425,23.93346589,1542.6,1542.5,0.6081189]
[1673862380803,24.41996589,1542.6,1542.5,0.6081189]
[1673862380948,13.74676589,1542.6,1542.5,0.6081189]
[1673862381153,13.74676589,1542.6,1542.5,0.0001189]
[1673862381528,24.41996589,1542.6,1542.5,0.0001189]
[1673862381738,17.93740589,1542.6,1542.5,0.0001189]
[1673862382501,17.45090589,1542.6,1542.5,0.0001189]
[1673862385620,17.45830099,1542.6,1542.5,0.0001189]
[1673862391418,22.27385449,1542.6,1542.5,0.0001189]
[1673862391587,46.71703449,1542.6,1542.5,0.0001189]
[1673862391789,41.90148099,1542.6,1542.5,0.0001189]
[1673862392153,35.41892099,1542.6,1542.5,0.0001189]
[1673862393421,40.23572108,1542.6,1542.5,0.0001189]
[1673862394735,47.36462026,1542.6,1542.5,0.0001189]
[1673862395786,40.88206026,1542.6,1542.5,0.0001189]
[1673862396042,40.88206026,1542.6,1542.4,3.402e-05]
[1673862396367,13.60885281,1542.5,1542.4,3.402e-05]
[1673862398201,20.09183281,1542.5,1542.4,3.402e-05]
[1673862398412,26.57481281,1542.5,1542.4,3.402e-05]
[1673862398622,40.02239442,1542.5,1542.4,3.402e-05]
[1673862399517,39.37605524,1542.5,1542.4,3.402e-05]
[1673862400474,40.02239442,1542.5,1542.4,3.402e-05]
[1673862401538,22.23917199,1542.5,1542.4,3.402e-05]
[1673862402123,33.53973433,1542.5,1542.4,3.402e-05]
[1673862402324,32.89339515,1542.5,1542.4,3.402e-05]
[1673862402539,32.89386319,1542.5,1542.4,3.402e-05]
[1673862403300,21.59283281,1542.5,1542.4,3.402e-05]
[1673862403515,26.41180362,1542.5,1542.4,3.402e-05]
[1673862403824,21.59283281,1542.5,1542.4,3.402e-05]
[1673862404041,0.00246854,1542.4,1542.1,6.60575489]
[1673862404254,3.27278678,1542.3,1542.1,6.60575489]
[1673862404480,3.27278678,1542.2,1542.1,6.60575489]
[1673862410855,0.03136,1542.3,1542.1,19.57507489]
[1673862411139,3.30414678,1542.3,1542.1,19.57507489]
[1673862414275,3.27278678,1542.2,1542.1,6.60575489]
[1673862416095,3.27278678,1542.2,1542.1,0.12110489]
[1673862416320,3.60320146,1542.2,1542.1,0.12110489]
[1673862420771,3.27278678,1542.2,1542.1,0.12110489]
[1673862421084,3.27278678,1542.2,1542.1,6.60576489]
[1673862421671,3.27278678,1542.2,1542.1,13.09042489]
[1673862422138,3.27278678,1542.2,1542.1,6.60576489]
[1673862423192,3.27278678,1542.2,1542.1,0.12110489]
[1673862423353,3.27278678,1542.2,1542.0,0.12110489]
[1673862423354,1.43189511,1542.1,1542.0,0.12110489]
[1673862423564,4.70468189,1542.1,1542.0,0.12110489]
[1673862426197,4.70468189,1542.1,1542.0,0.00010489]
[1673862426391,4.96604189,1542.1,1542.0,0.00010489]
[1673862426640,6.42540149,1542.1,1542.0,0.00010489]
[1673862431232,5.37240149,1542.1,1542.0,0.00010489]
[1673862431439,3.91304189,1542.1,1542.0,0.00010489]
[1673862431651,3.68304189,1542.1,1542.0,0.00010489]
[1673862432447,3.68304189,1542.1,1542.0,6.48518489]
[1673862432605,3.68304189,1542.1,1542.0,0.00010489]
[1673862433019,3.68304189,1542.1,1542.0,6.48518489]
[1673862433349,3.68304189,1542.1,1542.0,12.97026489]
[1673862438659,0.03136,1542.1,1542.0,21.41299887]
[1673862438824,0.03136,1542.1,1542.0,22.91799887]
[1673862439788,0.03136,1542.1,1542.0,24.42099887]
[1673862440002,0.00246854,1542.4,1542.0,24.42099887]
[1673862440231,0.00246854,1542.4,1542.3,12.96764]
[1673862441681,0.00246854,1542.4,1542.3,19.45146]
[1673862442423,0.00246854,1542.4,1542.3,22.195302]
[1673862442952,0.00246854,1542.4,1542.3,23.700302]
[1673862445962,0.00246854,1542.4,1542.3,22.195302]
[1673862446328,0.00770435,1542.4,1542.3,22.195302]
[1673862447629,0.00770435,1542.4,1542.3,23.705302]
[1673862447900,0.00770435,1542.4,1542.3,25.215302]
[1673862450011,0.00770435,1542.4,1542.3,28.215302]
[1673862456703,10.54810513,1543.0,1542.3,35.561902]
[1673862456915,0.08330513,1543.0,1542.8,1.51]
[1673862457125,0.08330513,1543.0,1542.9,22.4629]
[1673862457391,0.08330513,1543.0,1542.9,20.9529]
[1673862461179,0.08031765,1543.0,1542.9,20.9529]
[1673862465915,0.08031765,1543.0,1542.9,19.4439]
[1673862466094,0.08031765,1543.0,1542.9,21.40155398]
[1673862471739,0.08031765,1543.0,1542.9,22.90755398]
[1673862474053,0.08031765,1543.0,1542.9,24.41655398]
[1673862474268,0.08031765,1543.0,1542.9,27.41655398]
[1673862480148,0.07265863,1543.2,1543.0,2.5]
[1673862480377,0.08320799,1543.3,1543.1,40.01634]
[1673862480569,0.08320799,1543.3,1543.2,3.015]
[1673862480798,0.08320799,1543.3,1543.2,25.45512]
[1673862483093,7.99e-06,1543.3,1543.2,25.45512]
[1673862483236,0.09257584,1543.6,1543.3,19.43883]
[1673862483446,0.09257584,1543.6,1543.5,3.014]
[1673862483776,0.09257584,1543.6,1543.5,6.014]
[1673862484137,0.09257584,1543.6,1543.5,31.92912]
[1673862484955,0.10252402,1543.9,1543.5,31.92912]
[1673862485174,0.10252402,1543.9,1543.7,1.497]
[1673862485466,0.10252402,1543.9,1543.7,27.85846]
[1673862485703,0.10252402,1543.9,1543.7,30.85846]
[1673862487148,0.10252402,1543.9,1543.7,31.16340943]
[1673862489173,1.14200565,1543.8,1543.7,21.68546943]
[1673862489391,1.14200565,1543.8,1543.7,6.78288943]
[1673862489888,1.62810565,1543.8,1543.7,6.78288943]
[1673862490275,0.57510565,1543.8,1543.7,6.78288943]
[1673862490492,0.88805057,1543.7,1543.5,6.47858]
[1673862490702,1.14180506,1543.6,1543.4,17.57558]
[1673862492008,1.14180506,1543.6,1543.4,24.05476]
[1673862492376,1.62800506,1543.6,1543.4,24.05476]
[1673862493021,1.62800506,1543.6,1543.4,12.95836]
[1673862493881,4.90079184,1543.6,1543.3,6.47931]
[1673862494098,0.49007918,1543.5,1543.3,12.95871]
[1673862495165,0.97627918,1543.5,1543.3,12.95871]
[1673862495313,2.48627918,1543.5,1543.3,12.95871]
[1673862496172,2.00007918,1543.5,1543.3,12.95871]
[1673862499338,2.48627918,1543.5,1543.3,12.95871]
[1673862499584,0.24862792,1543.4,1543.3,12.95871]
[1673862499756,0.4863,1543.4,1543.3,12.95871]
[1673862500172,2.48627918,1543.5,1543.3,12.95871]
[1673862501548,0.97627918,1543.5,1543.3,19.43833]
[1673862501768,0.4862,1543.5,1543.3,19.43833]
[1673862502627,17.00579184,1543.6,1543.3,19.43833]
[1673862504739,11.73680506,1543.6,1543.3,19.43833]
[1673862504896,11.648,1543.6,1543.3,19.43833]
[1673862505580,12.1342,1543.6,1543.3,19.43833]
[1673862505954,11.0812,1543.6,1543.3,19.43833]
[1673862506199,10.595,1543.6,1543.3,19.43833]
[1673862508432,12.5912,1543.6,1543.3,19.43833]
[1673862508586,1.74532,1543.5,1543.3,19.43833]
[1673862509883,1.25912,1543.5,1543.3,19.43833]
[1673862510635,12.5912,1543.6,1543.3,19.43833]
[1673862511495,10.595,1543.6,1543.3,19.43833]
[1673862515025,10.5919767,1543.6,1543.3,19.43833]
[1673862515488,12.0999767,1543.6,1543.3,19.43833]
[1673862515982,12.5861767,1543.6,1543.3,19.43833]
[1673862516194,1.25861767,1543.5,1543.3,19.43833]
[1673862516408,10.5919767,1543.6,1543.3,19.43833]
[1673862517759,12.0909767,1543.6,1543.3,19.43833]
[1673862520396,15.36376348,1543.6,1543.3,12.95871]
[1673862520834,15.36376348,1543.6,1543.3,19.43833]
[1673862521013,17.03756489,1543.6,1543.3,19.43833]
[1673862522704,0.4862,1543.5,1543.3,19.43833]
[1673862524537,10.05753611,1543.5,1543.2,6.47964]
[1673862524766,10.05753611,1543.5,1543.2,12.95942]
[1673862524954,5.26498678,1543.5,1543.2,12.95942]
[1673862525272,0.52649868,1543.4,1543.2,12.95942]
[1673862525872,2.03649868,1543.4,1543.2,12.95942]
[1673862527951,2.03649868,1543.4,1543.2,19.43946]
[1673862528160,1.51,1543.4,1543.2,19.43946]
[1673862528737,4.78278678,1543.4,1543.2,12.95942]
[1673862530157,4.78278678,1543.4,1543.2,6.47964]
[1673862531240,2.5,1543.5,1543.2,19.43972]
[1673862531482,2.53136,1543.5,1543.2,19.43972]
[1673862532312,2.53136,1543.5,1543.2,22.031706]
[1673862533482,0.03136,1543.5,1543.2,22.031706]
[1673862544383,0.03136,1543.5,1543.2,19.43972]
[1673862554722,9.60203071,1543.5,1543.2,19.43972]
[1673862554905,10.08823071,1543.5,1543.2,19.43972]
[1673862555122,9.60203071,1543.5,1543.2,19.43972]
[1673862555853,1.506,1543.4,1543.2,19.43972]
[1673862556026,1.2036,1543.3,1543.2,19.43972]
[1673862560463,0.1506,1543.3,1543.2,19.43972]
[1673862561092,1.2036,1543.3,1543.2,19.43972]
[1673862564173,1.2036,1543.3,1543.2,12.95968]
[1673862564385,5.98538678,1543.3,1543.2,6.47964]
[1673862564544,5.98538678,1543.3,1543.1,12.96035]
[1673862564915,13.62168546,1543.2,1542.9,6.48112]
[1673862565080,1.509,1543.0,1542.9,6.48112]
[1673862565486,5.888,1542.9,1542.7,12.9639]
[1673862565696,1.509,1542.8,1542.7,6.48194]
[1673862567326,2.63527868,1542.8,1542.6,12.96474]
[1673862567536,2.63527868,1542.8,1542.6,19.44705]
[1673862570334,1.509,1542.8,1542.6,19.44705]
[1673862570755,1.497,1542.8,1542.6,19.44705]
[1673862575362,1.49372559,1542.8,1542.6,19.44705]
[1673862576030,3.27278678,1542.8,1542.6,6.48231]
[1673862576472,1.51,1542.7,1542.6,6.48231]
[1673862576636,2.47365904,1542.7,1542.6,6.48231]
[1673862577520,1.51,1542.7,1542.6,6.48231]
[1673862578837,4.78278678,1542.7,1542.6,6.48231]
[1673862582037,3.27278678,1542.7,1542.6,6.48231]
[1673862584563,3.27278678,1542.7,1542.6,19.44743]
[1673862585694,3.27278678,1542.7,1542.6,12.96487]
[1673862585888,3.60006546,1542.7,1542.6,12.96487]
[1673862586256,13.3186679,1542.9,1542.6,19.44743]
[1673862586257,6.481,1542.9,1542.6,19.44743]
[1673862586464,3.27278678,1542.8,1542.6,19.44743]
[1673862587979,3.27278678,1542.8,1542.6,6.48231]
[1673862588193,3.30414678,1542.8,1542.6,6.48231]
[1673862589450,3.79054678,1542.8,1542.6,6.48231]
[1673862589664,1.43205468,1542.7,1542.6,6.48231]
[1673862591292,3.30414678,1542.8,1542.6,19.44743]
[1673862592293,0.03136,1542.8,1542.6,19.44743]
[1673862593612,0.03136,1542.8,1542.7,1.51]
[1673862593764,6.479,1543.2,1542.7,20.95642]
[1673862593974,6.479,1543.2,1542.8,1.502]
[1673862594320,6.479,1543.2,1542.9,26.07504]
[1673862595371,2.9863,1543.4,1542.9,26.07504]
[1673862595604,16.11424678,1543.4,1542.9,27.58504]
[1673862597227,16.11424678,1543.4,1543.0,0.26116056]
[1673862597441,16.11424678,1543.4,1543.1,19.44111]
[1673862599118,16.11424678,1543.4,1543.1,19.43779118]
[1673862599989,3.27278678,1543.3,1543.1,19.43779118]
[1673862600536,3.27278678,1543.3,1542.9,6.48121]
[1673862600537,3.27278678,1543.2,1543.0,6.48068]
[1673862600796,3.27278678,1543.2,1543.0,12.96128]
[1673862600945,0.32727868,1543.1,1543.0,12.96128]
[1673862601155,3.27278678,1543.2,1543.0,12.96128]
[1673862601365,3.27278678,1543.2,1543.0,6.4806]
[1673862601540,3.30414678,1543.2,1543.0,6.4806]
[1673862602222,3.30414678,1543.2,1543.0,12.96148]
[1673862602390,3.30414678,1543.2,1543.0,19.44236]
[1673862602391,0.03136,1543.2,1543.0,19.44236]
[1673862602605,0.03136,1543.2,1543.0,22.034704]
[1673862604638,0.03136,1543.2,1543.0,19.44236]
[1673862607113,3.30414678,1543.2,1543.0,19.44236]
[1673862608793,3.30414678,1543.2,1543.0,12.96148]
[1673862609215,3.27278678,1543.1,1542.9,6.48108]
[1673862609432,3.60006546,1543.0,1542.9,6.48108]
[1673862610312,3.60006546,1543.0,1542.9,12.96238]
[1673862610527,3.27278678,1543.0,1542.9,12.96238]
[1673862618892,3.27278678,1543.0,1542.9,6.48108]
[1673862621979,3.27278678,1543.0,1542.9,12.96238]
[1673862622502,0.03136,1543.1,1542.9,19.44368]
[1673862624706,0.03136,1543.1,1542.9,12.96238]
[1673862624875,3.27278678,1543.0,1542.9,12.96238]
[1673862625088,3.27278678,1543.0,1542.9,6.48108]
[1673862626176,3.27278678,1543.0,1542.9,12.96238]
[1673862628371,0.03136,1543.1,1542.9,19.44368]
[1673862633294,0.03136,1543.1,1543.0,0.53241391]
[1673862633508,0.03136,1543.1,1543.0,19.97505391]
[1673862634650,0.03136,1543.1,1543.0,22.6206673]
[1673862635013,2.5,1543.3,1543.0,22.6206673]
[1673862655362,12.6998,1543.4,1543.0,22.6206673]
[1673862655576,15.97258678,1543.4,1543.0,22.6206673]
[1673862656144,10.1998,1543.4,1543.0,22.6206673]
[1673862656402,10.1998,1543.4,1543.1,2.26206673]
[1673862656619,10.1998,1543.4,1543.2,25.92016]
[1673862657301,0.12275599,1543.6,1543.2,25.92016]
[1673862657525,10.74445599,1543.6,1543.2,25.92016]
[1673862657899,10.74207781,1543.6,1543.2,25.92016]
[1673862658214,10.74207781,1543.6,1543.3,1.70393714]
[1673862658373,10.74207781,1543.6,1543.4,19.4376]
[1673862661013,10.74207781,1543.6,1543.4,19.43457812]
[1673862663574,0.12037781,1543.6,1543.4,19.43457812]
[1673862666816,0.12037781,1543.6,1543.5,1.508]
[1673862667025,0.12037781,1543.6,1543.5,23.03859781]
[1673862667423,0.12037781,1543.6,1543.5,26.03859781]
[1673862670926,0.12037781,1543.6,1543.5,26.03259781]
[1673862672255,0.12037781,1543.6,1543.5,26.60168466]
[1673862677116,0.12037781,1543.6,1543.5,28.10968466]
[1673862677709,0.08900565,1543.8,1543.5,28.10968466]
[1673862677921,0.08900565,1543.8,1543.7,25.91176]
[1673862685709,1.14200565,1543.8,1543.7,19.43382]
[1673862687437,0.08900565,1543.8,1543.7,19.43382]
[1673862689332,4.41479243,1543.8,1543.7,6.47794]
[1673862689643,4.64479243,1543.8,1543.7,6.47794]
[1673862689852,6.28915449,1543.8,1543.7,6.47794]
[1673862691183,6.32051449,1543.8,1543.7,6.47794]
[1673862691812,6.09051449,1543.8,1543.7,6.47794]
[1673862694009,1.76472771,1543.8,1543.7,6.47794]
[1673862694259,0.60646565,1543.8,1543.7,19.43382]
[1673862694576,0.12036565,1543.8,1543.7,19.43382]
[1673862702011,0.11769334,1543.8,1543.7,19.43382]
[1673862704443,0.08633334,1543.8,1543.7,19.43382]
[1673862704655,0.10252402,1543.9,1543.7,23.94182]
[1673862704866,0.10252402,1543.9,1543.8,3.892182]
[1673862705091,0.10252402,1543.9,1543.8,23.324742]
[1673862705288,0.10252402,1543.9,1543.8,26.324742]
[1673862707496,0.10252402,1544.0,1543.8,26.324742]
[1673862708628,4.02e-06,1544.0,1543.9,22.4313]
[1673862708828,4.02e-06,1544.0,1543.9,26.3591522]
[1673862710344,4.02e-06,1544.0,1543.9,27.8671522]
[1673862711341,4.02e-06,1544.0,1543.9,26.3591522]
[1673862722008,4.02e-06,1544.0,1543.9,26.3552657]
[1673862728485,4.02e-06,1544.0,1543.9,22.4274135]
[1673862728642,4.02e-06,1544.0,1543.9,19.4313]
[1673862746726,0.10799583,1544.1,1544.0,1.10592274]
[1673862746938,0.10799583,1544.1,1544.0,14.05928274]
[1673862750877,0.10799583,1544.1,1544.0,12.95628274]
[1673862751198,0.17725595,1544.1,1544.0,12.95628274]
[1673862759409,0.20858595,1544.1,1544.0,12.95628274]
[1673862761907,0.20858595,1544.1,1544.0,12.95336]
[1673862767212,0.13932583,1544.1,1544.0,12.95336]
[1673862781831,0.13612767,1544.1,1544.0,12.95336]
[1673862791278,0.10479767,1544.1,1544.0,12.95336]
[1673862791529,19.17022056,1544.5,1544.0,12.95336]
[1673862791530,0.12548948,1544.7,1544.1,1.295336]
[1673862791743,0.12548948,1544.7,1544.2,42.39050502]
[1673862791744,0.15681948,1544.7,1544.2,42.39050502]
[1673862791959,0.15681948,1544.7,1544.2,42.61121602]
[1673862792169,0.15681948,1544.7,1544.3,8.69738313]
[1673862792393,0.15681948,1544.7,1544.4,25.89968]
[1673862792581,0.15681948,1544.7,1544.5,1.507]
[1673862792582,0.12548948,1544.7,1544.5,1.507]
[1673862792911,0.12548948,1544.7,1544.6,19.42248]
[1673862793067,0.12548948,1544.7,1544.6,20.47763966]
[1673862793283,0.12548948,1544.7,1544.6,21.98163966]
[1673862793738,0.12548948,1544.7,1544.6,28.45579966]
[1673862794958,0.12548948,1544.7,1544.6,30.67467068]
[1673862795592,0.12548948,1544.7,1544.6,30.67707352]
[1673862796062,0.12548948,1544.7,1544.6,28.4582025]
[1673862798166,0.12548948,1544.7,1544.6,31.4582025]
[1673862799741,0.12548948,1544.7,1544.6,31.6789135]
[1673862800695,8.96e-06,1544.8,1544.7,1.507]
[1673862800879,11.2511,1545.2,1544.8,25.89248]
[1673862801093,11.2511,1545.2,1544.9,1.504]
[1673862801286,11.2511,1545.2,1545.0,25.88996]
[1673862801921,0.4857,1545.2,1545.0,25.88996]
[1673862802111,0.78427,1545.2,1545.0,19.41747]
[1673862802327,0.51703,1545.1,1545.0,6.47249]
[1673862802773,3.01703,1545.1,1545.0,6.47249]
[1673862803477,3.01703,1545.1,1544.9,12.94578]
[1673862803686,1.08433,1545.0,1544.9,12.94578]
[1673862803897,1.491333,1545.0,1544.9,12.94578]
[1673862804974,1.491333,1545.0,1544.9,19.41869]
[1673862805185,0.03133,1545.0,1544.9,19.41869]
[1673862806035,1.08433,1545.0,1544.9,19.41869]
[1673862807044,0.03133,1545.0,1544.9,19.41869]
[1673862807605,1.08433,1545.0,1544.9,19.41869]
[1673862807820,0.03133,1545.0,1544.9,19.41869]
[1673862827976,4.61024978,1545.0,1544.9,6.47289]
[1673862828344,1.05520738,1544.9,1544.7,12.94722]
[1673862828657,1.08433,1544.8,1544.7,12.94722]
[1673862831394,0.03133,1544.8,1544.7,6.4735]
[1673862831547,0.03133,1544.8,1544.7,12.94724]
[1673862832614,1.08433,1544.8,1544.7,6.4735]
[1673862832822,1.19298374,1544.8,1544.6,6.47384]
[1673862833053,1.08433,1544.7,1544.6,6.47384]
[1673862833229,0.03133,1544.7,1544.6,12.9459657]
[1673862833439,0.03133,1544.7,1544.6,19.4201257]
[1673862848740,0.03133,1544.7,1544.6,22.4201257]
[1673862848906,0.03133,1544.7,1544.6,26.53486827]
[1673862850873,0.00220738,1544.9,1544.6,28.04186827]
[1673862851035,0.00220738,1544.9,1544.8,1.507]
[1673862851451,0.00220738,1544.9,1544.8,27.40028]
[1673862851656,0.00220738,1544.9,1544.8,32.89715469]
[1673862852008,0.00220738,1544.9,1544.8,44.54075469]
[1673862852196,11.2439,1545.4,1544.8,44.54075469]
[1673862852411,11.2439,1545.4,1545.1,19.41594]
[1673862852977,10.7583,1545.4,1545.1,19.41594]
[1673862853493,12.14775914,1545.4,1545.1,19.41594]
[1673862857347,10.7583,1545.4,1545.1,19.41594]
[1673862859557,3.13629136,1545.5,1545.1,19.41594]
[1673862860636,2.65069136,1545.5,1545.1,19.41594]
[1673862862185,0.15069136,1545.5,1545.1,19.41594]
[1673862862396,0.15069136,1545.5,1545.2,4.496]
[1673862862627,0.15069136,1545.5,1545.4,1.505]
[1673862862953,0.15069136,1545.5,1545.4,14.44662]
[1673862863265,0.15069136,1545.5,1545.4,20.91743]
[1673862865844,0.15069136,1545.5,1545.4,19.41243]
[1673862866824,0.15069136,1545.5,1545.4,20.91743]
[1673862867039,0.15069136,1545.5,1545.4,23.701256]
[1673862870264,0.15069136,1545.5,1545.4,24.59492813]
[1673862871311,0.15069136,1545.5,1545.4,24.77442336]
[1673862871524,0.15069136,1545.5,1545.4,23.88075123]
[1673862875674,1.20369136,1545.5,1545.4,19.59192523]
[1673862875984,1.20369136,1545.5,1545.4,6.65030523]
[1673862876355,1.68929136,1545.5,1545.4,6.65030523]
[1673862876819,1.20369136,1545.5,1545.4,0.17949523]
[1673862876984,1.52386001,1545.5,1545.4,0.17949523]
[1673862878107,2.00946001,1545.5,1545.4,0.17949523]
[1673862878247,2.00946001,1545.5,1545.2,6.47129]
[1673862878458,0.4856,1545.4,1545.2,6.47129]
[1673862878668,10.22923678,1545.4,1545.0,6.47245]
[1673862878924,4.005,1545.3,1545.0,6.47245]
[1673862879150,0.4857,1545.2,1545.0,6.47245]
[1673862879360,0.4857,1545.2,1544.9,19.4179]
[1673862879509,1.9907,1545.2,1544.8,6.47314]
[1673862879720,0.19907,1545.1,1544.8,6.47314]
[1673862879923,0.4857,1545.0,1544.8,6.47314]
[1673862880139,0.4857,1545.1,1544.8,12.94646]
[1673862880779,0.4857,1545.1,1544.8,19.41978]
[1673862882138,0.4857,1545.1,1544.8,19.36978]
[1673862882768,0.4857,1545.2,1544.8,19.36978]
[1673862882978,1.81075,1545.2,1544.8,19.36978]
[1673862885085,1.32505,1545.2,1544.8,19.36978]
[1673862885403,13.2504,1545.3,1544.8,19.36978]
[1673862886067,12.7648,1545.3,1544.8,20.87478]
[1673862886389,12.7648,1545.3,1545.0,19.4172]
[1673862887640,12.7648,1545.3,1545.0,20.9222]
[1673862891955,0.15069136,1545.5,1545.1,4.505]
[1673862892125,0.15069136,1545.5,1545.2,26.33678]
[1673862892335,0.15069136,1545.5,1545.2,36.98438]
[1673862895435,0.15069136,1545.5,1545.2,36.53388]
[1673862898534,0.15069136,1545.5,1545.2,30.06231]
[1673862901793,0.15069136,1545.5,1545.4,19.41243]
[1673862903100,0.14834115,1545.5,1545.4,19.41243]
[1673862904619,0.14834115,1545.5,1545.4,20.91743]
[1673862905213,0.14834115,1545.5,1545.4,23.656257]
[1673862905887,0.14834115,1545.5,1545.4,22.151257]
[1673862907225,0.14834115,1545.5,1545.4,25.151257]
[1673862913722,0.14834115,1545.5,1545.4,26.653257]
[1673862915118,0.14834115,1545.5,1545.4,25.151257]
[1673862915343,0.14834115,1545.5,1545.4,22.41243]
[1673862918559,1.20134115,1545.5,1545.4,9.47081]
[1673862918774,1.20134115,1545.5,1545.3,6.47084]
[1673862919455,4.47412793,1545.5,1545.2,6.47163]
[1673862919620,4.47412793,1545.5,1545.1,6.4718]
[1673862919621,17.41498793,1545.5,1545.1,6.4718]
[1673862919830,0.93301279,1545.4,1545.1,6.4718]
[1673862920193,3.43301279,1545.4,1545.1,6.4718]
[1673862923012,2.94741279,1545.4,1545.1,6.4718]
[1673862923715,9.41827279,1545.4,1545.1,6.4718]
[1673862923922,0.94182728,1545.3,1545.1,6.4718]
[1673862924136,0.94182728,1545.3,1545.1,6.46816586]
[1673862925721,10.68602406,1545.3,1544.9,6.47273]
[1673862925935,10.23016678,1545.2,1544.8,12.94639]
[1673862926163,1.02301668,1545.1,1544.8,12.94639]
[1673862927383,1.02301668,1545.1,1544.7,6.4737]
[1673862927384,12.27292346,1545.1,1544.7,6.4737]
[1673862927605,9.74536678,1545.0,1544.6,0.04578173]
[1673862928929,9.74536678,1545.0,1544.6,6.51994173]
[1673862929147,9.74536678,1545.0,1544.6,12.99410173]
[1673862929302,11.91848713,1545.0,1544.6,12.99410173]
[1673862930595,2.17312035,1545.0,1544.6,12.99410173]
[1673862930812,4.00871668,1545.1,1544.6,19.46826173]
[1673862931024,7.28150346,1545.1,1544.6,19.46826173]
[1673862933366,7.28150346,1545.1,1544.6,20.96526173]
[1673862935905,6.79580346,1545.1,1544.6,20.96526173]
[1673862936938,6.79580346,1545.1,1544.6,19.46826173]
[1673862937109,0.67958035,1545.0,1544.6,19.46826173]
[1673862940516,10.88438035,1545.0,1544.6,19.46826173]
[1673862946389,17.35687035,1545.0,1544.6,19.46826173]
[1673862946810,17.35687035,1545.0,1544.6,19.46575518]
[1673862950523,35.07763713,1545.0,1544.6,0.04327518]
[1673862950836,16.45399371,1544.9,1544.6,0.04327518]
[1673862952607,17.95899371,1544.9,1544.6,0.04327518]
[1673862958301,20.45899371,1544.9,1544.6,0.04327518]
[1673862959320,3.27278678,1544.8,1544.6,0.04327518]
[1673862959535,12.24619678,1544.8,1544.6,0.04327518]
[1673862959881,1.22461968,1544.7,1544.6,0.04327518]
[1673862960561,26.06396564,1544.7,1544.4,0.04578173]
[1673862960812,14.45416,1544.5,1544.4,0.04578173]
[1673862961000,17.72694678,1544.5,1544.4,0.04578173]
[1673862961215,17.95694678,1544.5,1544.4,0.04578173]
[1673862961430,20.47479946,1544.5,1544.4,0.00078173]
[1673862962885,31.25569946,1544.5,1544.4,0.00078173]
[1673862964351,37.73027946,1544.5,1544.4,0.00078173]
[1673862965233,38.21617946,1544.5,1544.4,0.00078173]
[1673862967682,39.72017946,1544.5,1544.4,0.00078173]
[1673862967874,42.75150946,1544.5,1544.4,0.00078173]
[1673862968629,39.75150946,1544.5,1544.4,0.00078173]
[1673862969204,42.75150946,1544.5,1544.2,0.00015073]
[1673862969461,7.97942,1544.3,1544.2,0.00015073]
[1673862969689,18.47495678,1544.3,1544.2,0.00015073]
[1673862969849,20.97495678,1544.3,1544.2,0.00015073]
[1673862971779,1.53533,1544.3,1544.2,1.00215073]
[1673862971995,2.5,1544.4,1544.2,7.47799073]
[1673862972322,2.5,1544.4,1544.2,7.47794073]
[1673862972669,2.5,1544.4,1544.2,1.00215073]
[1673862973312,2.5,1544.4,1544.2,7.47797073]
[1673862973930,2.5,1544.4,1544.2,13.95381073]
[1673862974184,10.7809,1544.5,1544.2,16.00244693]
[1673862974398,12.8082,1544.7,1544.2,18.15378611]
[1673862974610,12.6839,1544.7,1544.2,18.15378611]
[1673862974927,12.6839,1544.7,1544.4,19.42476]
[1673862975357,12.6839,1544.7,1544.4,21.667236]
[1673862975871,15.95668678,1544.7,1544.4,19.42476]
[1673862976189,17.46168678,1544.7,1544.4,12.94984]
[1673862976713,15.95668678,1544.7,1544.4,12.94984]
[1673862978030,3.27278678,1544.6,1544.4,12.94984]
[1673862978932,6.61913115,1545.5,1544.5,3.0]
[1673862979238,0.03133,1545.4,1544.8,19.41909]
[1673862979552,0.03133,1545.4,1545.0,19.41684]
[1673862979961,0.03133,1545.4,1545.2,19.41495]
[1673862980281,0.03133,1545.4,1545.2,20.91495]
[1673862980453,0.03133,1545.4,1545.2,21.56128918]
[1673862980824,0.03133,1545.4,1545.1,6.47204]
[1673862981134,0.68328762,1545.4,1545.1,6.47204]
[1673862981715,0.68328762,1545.4,1545.1,12.94411]
[1673862982032,0.03133,1545.4,1545.1,12.94411]
[1673862984349,3.30411678,1545.4,1545.1,12.94411]
[1673862985003,3.27278678,1545.3,1545.1,12.94411]
[1673862985348,3.27278678,1545.3,1545.1,6.47204]